fUST/lending_fUST_20250128
["ID","MTS","AMOUNT","RATE_DAILY","PERIOD"]
[350652979,1738031238082,-8746.42690987,0.00018686,2]
[350652980,1738031238108,-180.81588462,0.00018919,2]
[350652981,1738031238131,-160.345554,0.00019178,2]
[350652982,1738031238152,-7828.06168999,0.00019308,2]
[350652983,1738031323762,17431.45606846,0.00013,2]
[350652984,1738031323796,20000.0,0.00013,2]
[350652985,1738031323828,5000.0,0.00013,2]
[350652986,1738031323862,25642.13491448,0.00013,2]
[350653067,1738031432450,-150.54095863,0.00016471,2]
[350653068,1738031432462,-305.13298768,0.00016637,2]
[350653069,1738031432472,-542.64260115,0.00019,2]
[350653070,1738031432485,-31758.24191182,0.00019,2]
[350653078,1738031438242,-166.30458795,0.00018999,2]
[350653079,1738031438251,-505.86137405,0.00018999,2]
[350653080,1738031438260,-500.0,0.00018999,2]
[350653081,1738031438269,-507.71747581,0.00018999,2]
[350653082,1738031438278,-500.0,0.00018999,2]
[350653083,1738031438287,-185.04412082,0.00018999,2]
[350653084,1738031438296,-503.59834773,0.00018999,2]
[350653085,1738031438305,-500.0,0.00018999,2]
[350653086,1738031438314,-500.17605659,0.00018999,2]
[350653087,1738031438324,-30080.92929827,0.00019,2]
[350653088,1738031438335,-4437.93760135,0.00019,2]
[350653089,1738031438346,-751.89684868,0.00019,2]
[350653090,1738031438357,-25178.02018701,0.00019,2]
[350653091,1738031438369,-517.5299952,0.00019,2]
[350653092,1738031438403,-2144.121709,0.00019,2]
[350653093,1738031438459,-8122.787261,0.00019,2]
[350653143,1738031440260,-150.54095863,0.00018809,2]
[350653144,1738031440269,-1204.45598708,0.00019,2]
[350653145,1738031440281,-2020.65807544,0.00019,2]
[350653146,1738031440317,-334.98124228,0.00019,2]
[350653147,1738031440328,-1296.2266425,0.00019,2]
[350653148,1738031440340,-834.67211522,0.00019,2]
[350653149,1738031440352,-398.076,0.00019,2]
[350653150,1738031440363,-1375.39706211,0.00019,2]
[350653151,1738031440375,-1051.38116677,0.00019,2]
[350653152,1738031440386,-1133.85484393,0.00019,2]
[350653170,1738031443245,-604.0,0.00019,2]
[350653187,1738031446247,-5928.39445654,0.00019,2]
[350653188,1738031446257,-166.49146137,0.00019208,2]
[350653189,1738031446267,-500.0,0.00019308,2]
[350653190,1738031446277,-501.6844787,0.00019308,2]
[350653191,1738031446286,-505.21307681,0.00019308,2]
[350653192,1738031446295,-500.0,0.00019308,2]
[350653193,1738031446312,-500.0,0.00019308,2]
[350653194,1738031446322,-500.0,0.00019308,2]
[350653195,1738031446331,-620.38905081,0.00019308,2]
[350653196,1738031446340,-500.0,0.00019308,2]
[350653197,1738031446349,-500.0,0.00019308,2]
[350653198,1738031446358,-500.0,0.00019308,2]
[350653199,1738031446368,-500.0,0.00019308,2]
[350653200,1738031446378,-500.0,0.00019308,2]
[350653201,1738031446389,-500.0,0.00019308,2]
[350653202,1738031446398,-500.0,0.00019308,2]
[350653203,1738031446408,-500.0,0.00019308,2]
[350653204,1738031446417,-500.0,0.00019308,2]
[350653205,1738031446427,-500.0,0.00019308,2]
[350653206,1738031446436,-500.0,0.00019308,2]
[350653207,1738031446446,-500.0,0.00019308,2]
[350653208,1738031446457,-500.0,0.00019308,2]
[350653209,1738031446466,-500.0,0.00019308,2]
[350653210,1738031446476,-3554.90021841,0.00019308,2]
[350653211,1738031446485,-500.0,0.00019445,2]
[350653212,1738031446495,-500.0,0.00019445,2]
[350653213,1738031446504,-500.0,0.00019445,2]
[350653214,1738031446514,-500.0,0.00019445,2]
[350653215,1738031446524,-500.0,0.00019445,2]
[350653216,1738031446533,-500.0,0.00019445,2]
[350653217,1738031446542,-500.0,0.00019445,2]
[350653218,1738031446552,-500.0,0.00019445,2]
[350653219,1738031446562,-500.0,0.00019445,2]
[350653220,1738031446571,-500.0,0.00019445,2]
[350653221,1738031446580,-500.0,0.00019445,2]
[350653222,1738031446590,-500.0,0.00019445,2]
[350653223,1738031446599,-500.0,0.00019445,2]
[350653224,1738031446608,-500.0,0.00019445,2]
[350653225,1738031446617,-500.0,0.00019582,2]
[350653226,1738031446626,-500.0,0.00019582,2]
[350653227,1738031446635,-500.0,0.00019582,2]
[350653228,1738031446644,-500.0,0.00019582,2]
[350653229,1738031446653,-500.0,0.00019582,2]
[350653230,1738031446662,-500.0,0.00019582,2]
[350653231,1738031446671,-500.0,0.00019582,2]
[350653232,1738031446681,-500.0,0.00019582,2]
[350653233,1738031446690,-500.0,0.00019582,2]
[350653234,1738031446699,-500.0,0.00019582,2]
[350653235,1738031446712,-500.0,0.00019582,2]
[350653236,1738031446721,-500.0,0.00019582,2]
[350653237,1738031446731,-500.0,0.00019582,2]
[350653238,1738031446750,-500.0,0.00019582,2]
[350653239,1738031446760,-500.0,0.00019719,2]
[350653240,1738031446769,-500.0,0.00019719,2]
[350653241,1738031446779,-500.0,0.00019719,2]
[350653242,1738031446788,-500.0,0.00019719,2]
[350653243,1738031446798,-500.0,0.00019719,2]
[350653244,1738031446808,-500.0,0.00019719,2]
[350653245,1738031446818,-500.0,0.00019719,2]
[350653246,1738031446827,-500.0,0.00019719,2]
[350653247,1738031446838,-500.0,0.00019719,2]
[350653248,1738031446847,-500.0,0.00019719,2]
[350653249,1738031446857,-500.0,0.00019719,2]
[350653250,1738031446866,-500.0,0.00019856,2]
[350653251,1738031446875,-500.0,0.00019856,2]
[350653252,1738031446885,-264.3,0.00019856,2]
[350653253,1738031446896,-500.0,0.00019856,2]
[350653254,1738031446905,-500.0,0.00019856,2]
[350653255,1738031446915,-403.73,0.00019856,2]
[350653256,1738031446924,-500.0,0.00019856,2]
[350653257,1738031446934,-442.77938982,0.00019856,2]
[350653258,1738031446944,-500.0,0.00019856,2]
[350653259,1738031446956,-500.0,0.00019856,2]
[350653260,1738031446966,-500.0,0.00019993,2]
[350653261,1738031446976,-500.0,0.00019993,2]
[350653262,1738031446985,-500.0,0.00019993,2]
[350653263,1738031446995,-500.0,0.00019993,2]
[350653264,1738031447005,-261.85,0.00019993,2]
[350653265,1738031447015,-500.0,0.00019993,2]
[350653266,1738031447025,-166.49146137,0.00020071,2]
[350653267,1738031447035,-152.0,0.00020096,2]
[350653268,1738031447045,-395.83,0.0002013,2]
[350653269,1738031447054,-500.0,0.0002013,2]
[350653270,1738031447064,-500.0,0.0002013,2]
[350653271,1738031447073,-612.59,0.0002013,2]
[350653272,1738031447083,-500.0,0.0002013,2]
[350653273,1738031447093,-163.40667111,0.00020234,2]
[350653274,1738031447103,-500.0,0.00020267,2]
[350653275,1738031447113,-500.0,0.00020267,2]
[350653276,1738031447123,-500.0,0.00020267,2]
[350653277,1738031447132,-500.0,0.00020332,2]
[350653278,1738031447142,-500.0,0.00020332,2]
[350653279,1738031447152,-500.0,0.00020332,2]
[350653280,1738031447162,-509.99436175,0.00020332,2]
[350653281,1738031447172,-500.0,0.00020332,2]
[350653282,1738031447182,-500.0,0.00020332,2]
[350653283,1738031447191,-501.34008335,0.00020332,2]
[350653284,1738031447204,-500.0,0.00020332,2]
[350653285,1738031447214,-504.21615909,0.00020332,2]
[350653286,1738031447223,-508.75466726,0.00020332,2]
[350653287,1738031447233,-500.0,0.00020332,2]
[350653288,1738031447243,-506.34967255,0.00020332,2]
[350653289,1738031447252,-500.70733648,0.00020332,2]
[350653290,1738031447262,-512.8742368,0.00020332,2]
[350653291,1738031447271,-500.0,0.00020332,2]
[350653292,1738031447281,-512.86240362,0.00020332,2]
[350653293,1738031447291,-500.0,0.00020332,2]
[350653294,1738031447300,-500.0,0.00020332,2]
[350653295,1738031447310,-500.0,0.00020332,2]
[350653296,1738031447319,-500.0,0.00020332,2]
[350653297,1738031447328,-1668.19,0.00020332,2]
[350653298,1738031447338,-500.0,0.00020332,2]
[350653299,1738031447347,-500.0,0.00020332,2]
[350653300,1738031447357,-500.0,0.00020332,2]
[350653301,1738031447367,-290.55095428,0.00020332,2]
[350653302,1738031447377,-224.8764027,0.00020332,2]
[350653303,1738031447387,-500.0,0.00020332,2]
[350653304,1738031447396,-263.33289828,0.00020332,2]
[350653305,1738031447406,-502.81230508,0.00020333,2]
[350653306,1738031447415,-502.06962568,0.00020333,2]
[350653307,1738031447424,-520.70962939,0.00020333,2]
[350653308,1738031447433,-509.63609393,0.00020333,2]
[350653309,1738031447444,-519.93628509,0.00020333,2]
[350653310,1738031447457,-510.40168169,0.00020333,2]
[350653311,1738031447467,-501.80081994,0.00020333,2]
[350653312,1738031447476,-506.42946983,0.00020333,2]
[350653313,1738031447487,-508.3412282,0.00020333,2]
[350653314,1738031447497,-501.59908617,0.00020333,2]
[350653315,1738031447507,-512.38550431,0.00020333,2]
[350653316,1738031447516,-500.0,0.00020333,2]
[350653317,1738031447526,-511.04947637,0.00020333,2]
[350653318,1738031447547,-502.52917595,0.00020333,2]
[350653319,1738031447565,-570.44548538,0.00020333,2]
[350653320,1738031447575,-518.09606933,0.00020333,2]
[350653321,1738031447586,-500.0,0.00020333,2]
[350653322,1738031447595,-500.0,0.00020333,2]
[350653323,1738031447606,-506.5620618,0.00020333,2]
[350653324,1738031447616,-509.90773257,0.00020333,2]
[350653325,1738031447627,-513.6707461,0.00020333,2]
[350653326,1738031447637,-510.76952448,0.00020333,2]
[350653327,1738031447647,-510.37518455,0.00020333,2]
[350653328,1738031447657,-500.0,0.00020333,2]
[350653329,1738031447666,-514.13369655,0.00020333,2]
[350653330,1738031447676,-500.0,0.00020333,2]
[350653331,1738031447685,-500.0,0.00020333,2]
[350653332,1738031447695,-505.53672214,0.00020333,2]
[350653333,1738031447707,-515.67013667,0.00020333,2]
[350653334,1738031447721,-509.57070236,0.00020333,2]
[350653335,1738031447731,-502.25934157,0.00020333,2]
[350653336,1738031447741,-506.26386743,0.00020333,2]
[350653337,1738031447750,-500.0,0.00020333,2]
[350653338,1738031447760,-557.19360681,0.00020333,2]
[350653339,1738031447770,-500.0,0.00020333,2]
[350653340,1738031447779,-518.53123065,0.00020333,2]
[350653341,1738031447789,-503.29349219,0.00020333,2]
[350653342,1738031447798,-500.0,0.00020333,2]
[350653343,1738031447808,-516.32105053,0.00020333,2]
[350653344,1738031447817,-509.46770653,0.00020333,2]
[350653345,1738031447946,-500.0,0.00020333,2]
[350653346,1738031447960,-505.71960024,0.00020333,2]
[350653347,1738031447970,-505.64587961,0.00020333,2]
[350653348,1738031447979,-509.84263817,0.00020333,2]
[350653349,1738031447988,-505.41793361,0.00020333,2]
[350653350,1738031448003,-500.0,0.00020333,2]
[350653351,1738031448013,-502.10944822,0.00020333,2]
[350653352,1738031448022,-505.38182852,0.00020333,2]
[350653353,1738031448032,-503.08806633,0.00020333,2]
[350653354,1738031448042,-500.0,0.00020333,2]
[350653355,1738031448051,-458.9640769,0.00020333,2]
[350653356,1738031448062,-506.02608042,0.00020333,2]
[350653357,1738031448072,-506.56025046,0.00020333,2]
[350653358,1738031448081,-500.0,0.00020333,2]
[350653359,1738031448091,-506.11306179,0.00020333,2]
[350653360,1738031448100,-515.10006515,0.00020333,2]
[350653361,1738031448110,-565.10616954,0.00020333,2]
[350653362,1738031448119,-500.0,0.00020333,2]
[350653363,1738031448128,-504.50089828,0.00020333,2]
[350653364,1738031448145,-500.0,0.00020333,2]
[350653365,1738031448155,-500.0,0.00020333,2]
[350653366,1738031448166,-500.0,0.00020333,2]
[350653367,1738031448177,-500.85553661,0.00020333,2]
[350653368,1738031448187,-500.0,0.00020333,2]
[350653369,1738031448196,-500.0,0.00020333,2]
[350653370,1738031448209,-500.0,0.00020333,2]
[350653371,1738031448220,-500.62232956,0.00020333,2]
[350653372,1738031448231,-510.64613446,0.00020333,2]
[350653373,1738031448241,-505.77466342,0.00020333,2]
[350653374,1738031448251,-500.0,0.00020333,2]
[350653375,1738031448261,-500.0,0.00020333,2]
[350653376,1738031448271,-504.98448032,0.00020333,2]
[350653377,1738031448280,-514.83767085,0.00020333,2]
[350653378,1738031448290,-161.769721,0.00020333,2]
[350653379,1738031448300,-500.0,0.00020333,2]
[350653380,1738031448309,-155.110799,0.00020333,2]
[350653381,1738031448319,-505.74721277,0.00020333,2]
[350653382,1738031448328,-151.0,0.00020333,2]
[350653383,1738031448338,-155.294969,0.00020333,2]
[350653384,1738031448347,-152.581189,0.00020333,2]
[350653385,1738031448358,-158.926742,0.00020333,2]
[350653386,1738031448368,-506.23672501,0.00020333,2]
[350653387,1738031448377,-151.0,0.00020333,2]
[350653388,1738031448387,-517.71242882,0.00020333,2]
[350653389,1738031448397,-151.0,0.00020333,2]
[350653390,1738031448407,-387.3374221,0.00020333,2]
[350653391,1738031448416,-232.16386,0.00020333,2]
[350653392,1738031448426,-151.0,0.00020333,2]
[350653393,1738031448436,-508.71095045,0.00020333,2]
[350653394,1738031448446,-513.47067732,0.00020333,2]
[350653395,1738031448458,-292.927601,0.00020333,2]
[350653396,1738031448469,-506.11484837,0.00020333,2]
[350653397,1738031448479,-500.0,0.00020334,2]
[350653398,1738031448489,-507.05217585,0.00020334,2]
[350653399,1738031448500,-505.90889732,0.00020334,2]
[350653400,1738031448510,-508.86419014,0.00020334,2]
[350653401,1738031448520,-504.05298417,0.00020334,2]
[350653402,1738031448531,-501.30622292,0.00020334,2]
[350653403,1738031448540,-508.24861524,0.00020334,2]
[350653404,1738031448550,-591.61366034,0.00020334,2]
[350653405,1738031448559,-636.03091585,0.00020334,2]
[350653406,1738031448569,-504.55407262,0.00020334,2]
[350653407,1738031448579,-504.97581693,0.00020334,2]
[350653408,1738031448589,-500.0,0.00020334,2]
[350653409,1738031448599,-507.68270124,0.00020334,2]
[350653410,1738031448609,-510.3268729,0.00020334,2]
[350653411,1738031448618,-509.23668689,0.00020334,2]
[350653412,1738031448628,-510.29922695,0.00020334,2]
[350653413,1738031448638,-511.61762681,0.00020334,2]
[350653414,1738031448648,-500.0,0.00020334,2]
[350653415,1738031448657,-504.97371401,0.00020334,2]
[350653416,1738031448667,-510.27759358,0.00020334,2]
[350653417,1738031448677,-509.29465721,0.00020334,2]
[350653418,1738031448686,-508.55370256,0.00020334,2]
[350653419,1738031448695,-510.34678381,0.00020334,2]
[350653420,1738031448706,-506.60553901,0.00020334,2]
[350653421,1738031448717,-512.38057389,0.00020334,2]
[350653422,1738031448727,-513.62816865,0.00020334,2]
[350653423,1738031448736,-506.39972131,0.00020334,2]
[350653424,1738031448746,-572.83710876,0.00020334,2]
[350653425,1738031448755,-508.211795,0.00020334,2]
[350653426,1738031448764,-451.91748561,0.00020334,2]
[350653427,1738031448812,-48.08251439,0.00020334,2]
[350653428,1738031448822,-509.22608716,0.00020334,2]
[350653429,1738031448832,-500.0,0.00020334,7]
[350653430,1738031448842,-506.75693735,0.00020334,2]
[350653431,1738031448851,-532.42582506,0.00020334,2]
[350653432,1738031448860,-506.08982417,0.00020334,2]
[350653433,1738031448870,-510.76165196,0.00020334,2]
[350653434,1738031448881,-182.03805322,0.00020334,2]
[350653435,1738031448891,-500.0,0.00020334,2]
[350653436,1738031448901,-506.48051309,0.00020334,2]
[350653437,1738031448911,-509.16633678,0.00020334,2]
[350653438,1738031448921,-500.0,0.00020334,2]
[350653439,1738031448931,-501.13053743,0.00020334,2]
[350653440,1738031448941,-500.0,0.00020334,2]
[350653441,1738031448950,-500.0,0.00020334,2]
[350653442,1738031448960,-502.06864171,0.00020334,2]
[350653443,1738031448969,-501.77489126,0.00020334,2]
[350653444,1738031448979,-500.67135677,0.00020334,2]
[350653445,1738031448988,-500.631272,0.00020334,2]
[350653446,1738031448998,-501.62855734,0.00020334,2]
[350653447,1738031449007,-500.0,0.00020334,2]
[350653448,1738031449017,-500.48638687,0.00020334,2]
[350653449,1738031449026,-503.97860411,0.00020334,2]
[350653450,1738031449036,-491.85005889,0.00020334,2]
[350653451,1738031449045,-500.71139083,0.00020334,2]
[350653452,1738031449055,-500.51582314,0.00020334,2]
[350653453,1738031449064,-500.80573637,0.00020334,2]
[350653454,1738031449074,-501.15651848,0.00020334,2]
[350653455,1738031449083,-501.02276818,0.00020334,2]
[350653456,1738031449092,-500.0,0.00020334,2]
[350653457,1738031449101,-509.34157496,0.00020334,2]
[350653458,1738031449110,-509.13311743,0.00020334,2]
[350653459,1738031449120,-501.5009798,0.00020334,2]
[350653460,1738031449130,-501.06089024,0.00020334,2]
[350653461,1738031449140,-504.93056133,0.00020334,2]
[350653462,1738031449150,-402.79565565,0.00020334,2]
[350653463,1738031449159,-506.47104447,0.00020334,2]
[350653464,1738031449168,-500.0,0.00020334,2]
[350653465,1738031449175,-519.3650211,0.00020334,2]
[350653466,1738031449185,-503.95040551,0.00020334,2]
[350653467,1738031449194,-152.619486,0.00020334,2]
[350653468,1738031449203,-538.37957254,0.00020334,2]
[350653469,1738031449213,-500.99805949,0.00020334,2]
[350653470,1738031449223,-502.41458601,0.00020334,2]
[350653471,1738031449232,-507.01789303,0.00020334,2]
[350653472,1738031449242,-506.72702175,0.00020334,2]
[350653473,1738031449252,-284.32571692,0.00020334,2]
[350653474,1738031449262,-506.72606537,0.00020334,2]
[350653475,1738031449272,-503.46263322,0.00020334,2]
[350653476,1738031449281,-510.09749904,0.00020334,2]
[350653477,1738031449291,-506.30122835,0.00020334,2]
[350653478,1738031449301,-505.05918737,0.00020334,2]
[350653479,1738031449310,-562.82390954,0.00020334,2]
[350653480,1738031449320,-510.11385588,0.00020334,2]
[350653481,1738031449329,-514.97301848,0.00020334,2]
[350653482,1738031449339,-505.3612168,0.00020334,2]
[350653483,1738031449350,-151.0,0.00020334,2]
[350653484,1738031449360,-151.0,0.00020334,2]
[350653485,1738031449371,-353.15079381,0.00020334,2]
[350653486,1738031449381,-504.84437972,0.00020334,2]
[350653487,1738031449392,-508.21537451,0.00020334,2]
[350653488,1738031449403,-545.90422205,0.00020334,2]
[350653489,1738031449413,-504.38867513,0.00020334,2]
[350653490,1738031449422,-502.59775337,0.00020334,2]
[350653491,1738031449432,-514.31961066,0.00020334,2]
[350653492,1738031449443,-505.14719217,0.00020334,2]
[350653493,1738031449453,-503.72939903,0.00020334,2]
[350653494,1738031449463,-152.713437,0.00020334,2]
[350653495,1738031449473,-151.0,0.00020334,2]
[350653496,1738031449483,-157.546906,0.00020334,2]
[350653497,1738031449493,-489.96927204,0.00020334,2]
[350653498,1738031449502,-551.02984266,0.00020334,2]
[350653499,1738031449512,-151.0,0.00020334,2]
[350653500,1738031449523,-151.0,0.00020334,2]
[350653501,1738031449533,-154.241361,0.00020334,2]
[350653502,1738031449542,-188.436402,0.00020334,2]
[350653503,1738031449552,-500.0,0.00020334,2]
[350653504,1738031449562,-151.0,0.00020334,2]
[350653505,1738031449571,-151.0,0.00020334,2]
[350653506,1738031449581,-151.0,0.00020334,2]
[350653507,1738031449590,-155.005127,0.00020334,2]
[350653508,1738031449600,-154.716693,0.00020334,2]
[350653509,1738031449609,-244.258843,0.00020334,2]
[350653510,1738031449618,-244.258843,0.00020334,2]
[350653511,1738031449627,-154.023311,0.00020334,2]
[350653512,1738031449637,-244.258843,0.00020334,2]
[350653513,1738031449649,-244.258843,0.00020334,2]
[350653514,1738031449659,-151.0,0.00020334,2]
[350653515,1738031449669,-151.0,0.00020334,2]
[350653516,1738031449679,-151.0,0.00020334,2]
[350653517,1738031449689,-151.0,0.00020334,2]
[350653518,1738031449699,-151.0,0.00020334,2]
[350653519,1738031449710,-151.0,0.00020334,2]
[350653520,1738031449723,-156.239003,0.00020334,2]
[350653521,1738031449733,-500.0,0.00020334,2]
[350653522,1738031449742,-151.0,0.00020334,2]
[350653523,1738031449751,-188.895569,0.00020334,2]
[350653524,1738031449762,-188.895569,0.00020334,2]
[350653525,1738031449771,-170.386501,0.00020334,2]
[350653526,1738031449780,-188.895569,0.00020334,2]
[350653527,1738031449790,-188.895569,0.00020334,2]
[350653528,1738031449800,-151.0,0.00020334,2]
[350653529,1738031449810,-151.0,0.00020334,2]
[350653530,1738031449819,-509.48274584,0.00020334,2]
[350653531,1738031449829,-151.0,0.00020334,2]
[350653532,1738031449837,-151.0,0.00020334,2]
[350653533,1738031449847,-152.635077,0.00020334,2]
[350653534,1738031449856,-151.0,0.00020334,2]
[350653535,1738031449866,-151.0,0.00020334,2]
[350653536,1738031449875,-151.0,0.00020334,2]
[350653537,1738031449884,-151.0,0.00020334,2]
[350653538,1738031449893,-151.0,0.00020334,2]
[350653539,1738031449903,-151.0,0.00020334,2]
[350653540,1738031449912,-500.0,0.00020334,2]
[350653541,1738031449921,-298.346785,0.00020334,2]
[350653542,1738031449931,-151.0,0.00020334,2]
[350653543,1738031449940,-151.0,0.00020334,2]
[350653544,1738031449949,-151.0,0.00020334,2]
[350653545,1738031449958,-152.126657,0.00020334,2]
[350653546,1738031449967,-151.0,0.00020334,2]
[350653547,1738031449976,-151.0,0.00020334,2]
[350653548,1738031449988,-359.25120768,0.00020334,2]
[350653549,1738031449997,-151.0,0.00020335,2]
[350653550,1738031450006,-244.258843,0.00020335,2]
[350653551,1738031450015,-244.258843,0.00020335,2]
[350653552,1738031450024,-151.0,0.00020335,2]
[350653553,1738031450033,-151.0,0.00020335,2]
[350653554,1738031450042,-151.0,0.00020335,2]
[350653555,1738031450051,-188.895569,0.00020335,2]
[350653556,1738031450060,-188.895569,0.00020335,2]
[350653557,1738031450068,-151.0,0.00020335,2]
[350653558,1738031450077,-258.83167126,0.00020373,2]
[350653559,1738031450087,-500.0,0.00020404,2]
[350653560,1738031450096,-500.0,0.00020404,2]
[350653561,1738031450105,-171.85745929,0.00020404,2]
[350653572,1738031692568,162.970727,0.00013973,2]
[350653574,1738032358145,-1178.82717102,0.00015656,2]
[350653575,1738032358165,-150.60843884,0.000157,2]
[350653576,1738032358184,-197.09762083,0.00015714,2]
[350653577,1738032358204,-124.90082721,0.0001839,2]
[350653578,1738032425159,-788.16516756,0.0001798,2]
[350653579,1738032425180,-1995.4797289,0.00018162,2]
[350653580,1738032425201,-4468.84373829,0.0001839,2]
[350653581,1738032428098,-212.64414419,0.0001839,2]
[350653582,1738032432097,-246.09998178,0.0001839,2]
[350653583,1738032450116,-2030.95715963,0.0001839,2]
[350653584,1738032450140,-194.4848835,0.00018403,2]
[350653585,1738032450161,-300.0,0.00018918,2]
[350653586,1738032450182,-500.0,0.00018919,2]
[350653587,1738032450202,-160.619832,0.00019178,2]
[350653588,1738032450221,-858.13603201,0.00019322,2]
[350653589,1738032450242,-151.72872164,0.00019432,2]
[350653590,1738032450263,-500.0,0.00019443,2]
[350653591,1738032450285,-110.94150792,0.00019443,2]
[350653593,1738032613767,158.291139,0.00013973,2]
[350653611,1738032636565,-160.345554,0.00019178,2]
[350653613,1738032636575,-192.06575874,0.00019343,2]
[350653615,1738032636584,-500.0,0.00019443,2]
[350653635,1738032636751,-500.0,0.00019443,2]
[350653637,1738032636761,-500.0,0.00019443,2]
[350653639,1738032636770,-500.0,0.00019443,2]
[350653641,1738032636779,-500.0,0.00019443,2]
[350653643,1738032636788,-506.98724892,0.00019443,2]
[350653645,1738032636797,-246.6679169,0.00019443,2]
[350653647,1738032636807,-500.0,0.00019443,2]
[350653649,1738032636816,-500.0,0.00019443,2]
[350653651,1738032636825,-500.0,0.00019443,2]
[350653653,1738032636834,-500.0,0.00019443,2]
[350653655,1738032636845,-30.36350582,0.00019443,2]
[350653657,1738032636857,-469.63649418,0.00019443,2]
[350653660,1738032636867,-436.01750582,0.00019443,2]
[350653713,1738032638521,-63.98249418,0.00019443,2]
[350653714,1738032638531,-550.59,0.00019443,2]
[350653715,1738032638540,-500.0,0.00019443,2]
[350653716,1738032638549,-500.0,0.00019443,2]
[350653717,1738032638559,-500.0,0.00019443,2]
[350653718,1738032638568,-500.0,0.00019443,2]
[350653719,1738032638578,-500.0,0.00019443,2]
[350653720,1738032638587,-500.0,0.00019443,2]
[350653721,1738032638596,-500.0,0.00019443,2]
[350653722,1738032638605,-279.28876102,0.00019443,2]
[350653723,1738032638615,-2539.01,0.00019443,2]
[350653724,1738032638624,-500.0,0.00019443,2]
[350653725,1738032638634,-500.0,0.00019443,2]
[350653726,1738032638648,-362.48000897,0.00019443,2]
[350653727,1738032638658,-500.0,0.00019443,2]
[350653728,1738032638667,-669.3456639,0.00019443,2]
[350653729,1738032638679,-118.0443361,0.00019443,2]
[350653730,1738032638689,-410.74323971,0.00019443,2]
[350653800,1738032643447,-89.25676029,0.00019443,2]
[350653801,1738032643458,-424.01080265,0.00019443,2]
[350653802,1738032643467,-500.0,0.00019443,2]
[350653803,1738032643476,-500.0,0.00019443,2]
[350653804,1738032643485,-500.0,0.00019443,2]
[350653805,1738032643495,-500.0,0.00019443,2]
[350653806,1738032643503,-363.87319516,0.00019444,2]
[350653807,1738032643512,-280.91739586,0.00019444,2]
[350653808,1738032643522,-540.21321174,0.00019444,2]
[350653809,1738032643531,-266.20911421,0.00019444,2]
[350653810,1738032643540,-249.62704411,0.00019444,2]
[350653811,1738032643550,-175.08270276,0.00019444,2]
[350653812,1738032643559,-160.45074206,0.00019444,2]
[350653813,1738032643568,-500.0,0.00019444,2]
[350653814,1738032643577,-363.87754926,0.00019444,2]
[350653815,1738032643587,-350.944888,0.00019444,2]
[350653816,1738032643596,-500.0,0.00019444,2]
[350653817,1738032643605,-500.0,0.00019444,2]
[350653818,1738032643614,-503.99096917,0.00019444,2]
[350653819,1738032643623,-511.40729018,0.00019444,2]
[350653820,1738032643632,-500.0,0.00019444,2]
[350653821,1738032643641,-500.0,0.00019444,2]
[350653822,1738032643651,-500.0,0.00019444,2]
[350653823,1738032643660,-503.94343496,0.00019444,2]
[350653824,1738032643669,-500.0,0.00019444,2]
[350653825,1738032643679,-508.05497132,0.00019444,2]
[350653826,1738032643688,-507.4068558,0.00019444,2]
[350653827,1738032643697,-510.69220395,0.00019444,2]
[350653828,1738032643707,-500.0,0.00019444,2]
[350653829,1738032643716,-252.06118461,0.00019444,2]
[350653830,1738032643725,-388.26046777,0.00019444,2]
[350653831,1738032643734,-500.0,0.00019444,2]